fUST/lending_fUST_20240521
["ID","MTS","AMOUNT","RATE_DAILY","PERIOD"]
[327562256,1716233433446,-154.8915759,0.00011746,2]
[327562258,1716233433461,-46982.8343499,0.00011748,2]
[327562260,1716233433470,-155.36396696,0.00012747,2]
[327562262,1716233433479,-2393.40604751,0.00012753,2]
[327562264,1716233433488,-24900.0,0.00012867,2]
[327562266,1716233433497,-2749.09470602,0.000129,2]
[327562268,1716233433507,-2393.40604749,0.00012965,2]
[327562270,1716233433516,-2393.40604749,0.00013177,2]
[327562276,1716233433526,-2393.40604749,0.00013388,2]
[327562277,1716233433652,-2393.40604749,0.000136,2]
[327562278,1716233433662,-273.05472635,0.00013696,2]
[327562279,1716233433671,-846.78148799,0.00013696,2]
[327562280,1716233433680,-16212.4086,0.00013699,2]
[327562281,1716233433689,-3000.0,0.00013699,2]
[327562282,1716233433698,-808.705015,0.00013699,2]
[327562283,1716233433710,-151.863208,0.00013699,2]
[327562284,1716233433719,-746.374735,0.00013699,2]
[327562285,1716233433728,-151.0,0.00013699,2]
[327562286,1716233433737,-746.374735,0.00013699,2]
[327562287,1716233433747,-151.0,0.00013699,2]
[327562288,1716233433755,-484.577501,0.00013699,2]
[327562290,1716233433765,-484.577501,0.00013699,2]
[327562291,1716233433780,-283.65215008,0.000137,2]
[327562293,1716233433789,-264.54391882,0.00013992,2]
[327562295,1716233433799,-330.40986229,0.00013992,2]
[327562297,1716233433809,-1350.43959976,0.00013992,2]
[327562299,1716233433820,-653.57166795,0.00013992,2]
[327562301,1716233433830,-344.31805971,0.00013993,2]
[327562303,1716233433839,-306.65032713,0.00013993,2]
[327562305,1716233433848,-486.84438592,0.00013996,2]
[327562307,1716233433860,-390.92268685,0.00013996,2]
[327562309,1716233433869,-215.78412732,0.00013996,2]
[327562311,1716233433878,-287.83322838,0.00013996,2]
[327562313,1716233433887,-192.50535539,0.00013996,2]
[327562315,1716233433896,-225.1525539,0.00013996,2]
[327562317,1716233433908,-335.22791684,0.00013996,2]
[327562319,1716233433917,-1004.43454899,0.00013996,2]
[327562321,1716233433928,-309.47386655,0.00013996,2]
[327562323,1716233433937,-179.17618734,0.00013996,2]
[327562325,1716233433946,-184.56791078,0.00013996,2]
[327562327,1716233433959,-516.03123056,0.00013996,2]
[327562329,1716233433968,-189.53744087,0.00013996,2]
[327562331,1716233433978,-194.42088593,0.00013996,2]
[327562333,1716233433987,-158.280845,0.00013996,2]
[327562335,1716233433997,-158.280845,0.00013996,2]
[327562337,1716233434006,-151.0,0.00013996,2]
[327562339,1716233434015,-151.0,0.00013996,2]
[327562341,1716233434024,-210.976293,0.00013996,2]
[327562343,1716233434035,-151.0,0.00013996,2]
[327562345,1716233434045,-337.714579,0.00013996,2]
[327562347,1716233434054,-337.714579,0.00013996,2]
[327562349,1716233434066,-252.372375,0.00013996,2]
[327562351,1716233434075,-476.966123,0.00013996,2]
[327562353,1716233434084,-252.372375,0.00013996,2]
[327562355,1716233434094,-476.966123,0.00013996,2]
[327562357,1716233434104,-151.0,0.00013996,2]
[327562359,1716233434113,-184.80012108,0.00013997,2]
[327562361,1716233434123,-710.52070022,0.00013997,2]
[327562363,1716233434132,-921.16266462,0.00014,2]
[327562365,1716233434142,-1581.58969394,0.00014995,2]
[327562367,1716233434152,-61385.63848023,0.00015,3]
[327562369,1716233434161,-285.71224732,0.00015,2]
[327562371,1716233434171,-942.77170322,0.00015,2]
[327562373,1716233434180,-1684.33877323,0.00015,2]
[327562375,1716233434189,-154.87609912,0.00015,2]
[327562377,1716233434199,-2108.05589247,0.00015,2]
[327562379,1716233434213,-68077.51543528,0.00015,2]
[327562381,1716233434223,-21765.0031984,0.00015,2]
[327562383,1716233434232,-151.0,0.00015,2]
[327562385,1716233434241,-151.0,0.00015,2]
[327562387,1716233434251,-151.0,0.00015,2]
[327562389,1716233434260,-151.0,0.00015,2]
[327562390,1716233434270,-158.280845,0.00015,2]
[327562392,1716233434279,-158.280845,0.00015,2]
[327562394,1716233434288,-151.0,0.00015,2]
[327562396,1716233434298,-151.0,0.00015,2]
[327562398,1716233434307,-151.0,0.00015,2]
[327562400,1716233434317,-337.714579,0.00015,2]
[327562402,1716233434325,-337.714579,0.00015,2]
[327562404,1716233434335,-252.372375,0.00015,2]
[327562406,1716233434344,-476.966123,0.00015,2]
[327562408,1716233434353,-252.372375,0.00015,2]
[327562410,1716233434363,-476.966123,0.00015,2]
[327562412,1716233434372,-204.966241,0.00015,2]
[327562414,1716233434382,-204.966241,0.00015,2]
[327562416,1716233434391,-151.0,0.00015,2]
[327562418,1716233434401,-151.0,0.00015,2]
[327562420,1716233434411,-746.374735,0.00015,2]
[327562422,1716233434420,-151.0,0.00015,2]
[327562424,1716233434429,-746.374735,0.00015,2]
[327562426,1716233434439,-151.0,0.00015,2]
[327562428,1716233434448,-484.577501,0.00015,2]
[327562430,1716233434463,-484.577501,0.00015,2]
[327562432,1716233434473,-401.14838265,0.00016438,7]
[327562434,1716233434482,-274.31398473,0.000165,2]
[327562436,1716233434491,-154.87609912,0.000165,2]
[327562438,1716233434500,-2749.09470602,0.00017965,2]
[327562440,1716233434509,-986.45755068,0.00018,2]
[327562442,1716233434518,-154.86786605,0.00018515,2]
[327562444,1716233434528,-580.82197,0.00018515,2]
[327562446,1716233434538,-895.88641908,0.00018515,2]
[327562448,1716233434547,-818.31964662,0.00018515,2]
[327562450,1716233434556,-173.85199712,0.00018515,2]
[327562452,1716233434565,-158.96783613,0.00018516,2]
[327562454,1716233434575,-10451.02330036,0.00018516,2]
[327562456,1716233434584,-204.966241,0.00018516,2]
[327562458,1716233434593,-204.966241,0.00018516,2]
[327562460,1716233434603,-151.0,0.00018516,2]
[327562462,1716233434612,-746.374735,0.00018516,2]
[327562464,1716233434621,-746.374735,0.00018516,2]
[327562466,1716233434631,-151.0,0.00018516,2]
[327562468,1716233434640,-484.577501,0.00018516,2]
[327562470,1716233434649,-484.577501,0.00018516,2]
[327562472,1716233434658,-201.35678428,0.00018976,2]
[327562474,1716233434667,-286.01665724,0.00018976,2]
[327562476,1716233434677,-345.13866246,0.00018976,2]
[327562478,1716233434686,-531.08730599,0.00018976,2]
[327562480,1716233434696,-154.90650467,0.00018976,2]
[327562482,1716233434706,-154.92421724,0.00018976,2]
[327562484,1716233434720,-835.50091713,0.00018976,2]
[327562486,1716233434730,-154.8805143,0.00018976,2]
[327562488,1716233434740,-235.39080989,0.00018976,2]
[327562490,1716233434749,-1011.88123116,0.00018977,2]
[327562492,1716233434759,-213.09211131,0.00018977,2]
[327562494,1716233434768,-238.25130232,0.00018977,2]
[327562496,1716233434780,-264.34555412,0.00018978,2]
[327562498,1716233434790,-1408.0992932,0.00018978,2]
[327562500,1716233434799,-292.66816151,0.00018978,2]
[327562502,1716233434814,-188.26527624,0.00018978,2]
[327562504,1716233434825,-328.32221374,0.00018978,2]
[327562506,1716233434834,-197.02118229,0.00018978,2]
[327562508,1716233434844,-324.34366623,0.00018978,2]
[327562510,1716233434854,-452.82736237,0.00018978,2]
[327562513,1716233434863,-266.39718368,0.00018978,2]
[327562515,1716233434874,-759.95088389,0.00018978,2]
[327562517,1716233434885,-305.68788735,0.00018978,2]
[327562519,1716233434894,-155.09515177,0.00018978,2]
[327562521,1716233434904,-10536.17088532,0.00018978,2]
[327562523,1716233434914,-155.31415279,0.00018978,2]
[327562524,1716233434923,-214.069106,0.00018978,2]
[327562526,1716233434933,-1872.025099,0.00018978,2]
[327562528,1716233434943,-1872.025099,0.00018978,2]
[327562529,1716233434952,-225.363342,0.00018978,2]
[327562530,1716233434965,-225.363342,0.00018978,2]
[327562531,1716233434976,-2310.684312,0.00018978,2]
[327562532,1716233434985,-2310.684312,0.00018978,2]
[327562533,1716233434994,-151.0,0.00018978,2]
[327562534,1716233435004,-151.0,0.00018978,2]
[327562535,1716233435013,-151.0,0.00018978,2]
[327562536,1716233435023,-151.0,0.00018978,2]
[327562537,1716233435032,-158.280845,0.00018978,2]
[327562538,1716233435042,-158.280845,0.00018978,2]
[327562539,1716233435052,-151.0,0.00018978,2]
[327562540,1716233435061,-151.0,0.00018978,2]
[327562541,1716233435071,-151.39404,0.00018978,2]
[327562542,1716233435081,-337.714579,0.00018978,2]
[327562543,1716233435091,-337.714579,0.00018978,2]
[327562544,1716233435100,-252.372375,0.00018978,2]
[327562545,1716233435111,-476.966123,0.00018978,2]
[327562546,1716233435120,-252.372375,0.00018978,2]
[327562547,1716233435130,-476.966123,0.00018978,2]
[327562548,1716233435139,-204.966241,0.00018978,2]
[327562549,1716233435148,-204.966241,0.00018978,2]
[327562550,1716233435158,-151.0,0.00018978,2]
[327562551,1716233435171,-151.0,0.00018978,2]
[327562552,1716233435183,-924.08881973,0.00018979,2]
[327562553,1716233435195,-295.24766096,0.00018979,2]
[327562554,1716233435205,-409.91298911,0.00018979,2]
[327562555,1716233435219,-210.09304076,0.00018981,2]
[327562556,1716233435229,-700.64506324,0.00018981,2]
[327562557,1716233435239,-746.374735,0.00018981,2]
[327562558,1716233435248,-746.374735,0.00018981,2]
[327562559,1716233435257,-151.0,0.00018981,2]
[327562560,1716233435363,-484.577501,0.00018981,2]
[327562561,1716233435374,-484.577501,0.00018981,2]
[327562562,1716233435384,-156.77280387,0.00018983,2]
[327562563,1716233435395,-151.0,0.000191,2]
[327562564,1716233435404,-500.0,0.00019178,2]
[327562565,1716233435414,-500.0,0.00019178,2]
[327562566,1716233435423,-500.0,0.00019178,2]
[327562567,1716233435433,-500.0,0.00019178,2]
[327562568,1716233435442,-164.24621358,0.00019178,2]
[327562569,1716233435452,-500.0,0.00019178,2]
[327562570,1716233435469,-500.0,0.00019178,2]
[327562571,1716233435479,-500.0,0.00019178,2]
[327562572,1716233435489,-500.0,0.00019178,2]
[327562573,1716233435499,-500.0,0.00019178,2]
[327562574,1716233435510,-500.0,0.00019178,2]
[327562575,1716233435520,-500.0,0.00019178,2]
[327562576,1716233435530,-500.0,0.00019178,2]
[327562577,1716233435540,-500.0,0.00019178,2]
[327562578,1716233435550,-500.0,0.00019178,2]
[327562579,1716233435560,-500.0,0.00019178,2]
[327562580,1716233435571,-500.0,0.00019178,2]
[327562581,1716233435582,-500.0,0.00019178,2]
[327562582,1716233435593,-500.0,0.00019178,2]
[327562583,1716233435604,-500.0,0.00019178,2]
[327562584,1716233435614,-500.0,0.00019178,2]
[327562585,1716233435624,-435.0,0.00019178,2]
[327562586,1716233435633,-500.0,0.00019178,2]
[327562587,1716233435643,-500.0,0.00019178,2]
[327562588,1716233435654,-500.0,0.00019178,2]
[327562589,1716233435663,-500.0,0.00019178,2]
[327562590,1716233435673,-500.0,0.00019178,2]
[327562591,1716233435683,-500.0,0.00019178,2]
[327562592,1716233435693,-500.0,0.00019178,2]
[327562593,1716233435703,-500.0,0.00019178,2]
[327562594,1716233435720,-500.0,0.00019178,2]
[327562595,1716233435730,-500.0,0.00019178,2]
[327562596,1716233435739,-500.0,0.00019178,2]
[327562597,1716233435750,-500.0,0.00019178,2]
[327562598,1716233435760,-500.0,0.00019178,2]
[327562599,1716233435772,-500.0,0.00019178,2]
[327562600,1716233435789,-500.0,0.00019178,2]
[327562601,1716233435799,-500.0,0.00019178,2]
[327562602,1716233435810,-500.0,0.00019178,2]
[327562603,1716233435820,-500.0,0.00019178,2]
[327562604,1716233435831,-500.0,0.00019178,2]
[327562605,1716233435841,-500.0,0.00019178,2]
[327562606,1716233435852,-500.0,0.00019178,2]
[327562607,1716233435862,-500.0,0.00019178,2]
[327562608,1716233435873,-500.0,0.00019178,2]
[327562609,1716233435884,-500.0,0.00019178,2]
[327562610,1716233435895,-500.0,0.00019178,2]
[327562611,1716233435905,-500.0,0.00019178,2]
[327562612,1716233435915,-500.0,0.00019178,2]
[327562613,1716233435925,-500.0,0.00019178,2]
[327562614,1716233435936,-500.0,0.00019178,2]
[327562615,1716233435946,-550.00000001,0.00019178,2]
[327562616,1716233435956,-500.0,0.00019178,2]
[327562617,1716233435975,-500.0,0.00019178,2]
[327562618,1716233435985,-500.0,0.00019178,2]
[327562619,1716233435996,-500.0,0.00019178,2]
[327562620,1716233436006,-500.0,0.00019178,2]
[327562621,1716233436016,-500.0,0.00019178,2]
[327562622,1716233436027,-500.0,0.00019178,2]
[327562623,1716233436037,-500.0,0.00019178,2]
[327562624,1716233436048,-500.0,0.00019178,2]
[327562625,1716233436059,-500.0,0.00019178,2]
[327562626,1716233436069,-378.80975793,0.00019178,2]
[327562627,1716233436080,-500.0,0.00019178,2]
[327562628,1716233436090,-500.0,0.00019178,2]
[327562629,1716233436100,-500.0,0.00019178,2]
[327562630,1716233436110,-500.0,0.00019178,2]
[327562631,1716233436121,-505.62495653,0.00019178,2]
[327562632,1716233436131,-500.0,0.00019178,2]
[327562633,1716233436142,-500.0,0.00019178,2]
[327562634,1716233436152,-500.0,0.00019178,2]
[327562635,1716233436163,-500.0,0.00019178,2]
[327562636,1716233436173,-502.44274805,0.00019178,2]
[327562637,1716233436183,-500.0,0.00019178,2]
[327562638,1716233436193,-500.0,0.00019178,2]
[327562639,1716233436203,-500.0,0.00019178,2]
[327562640,1716233436213,-500.0,0.00019178,2]
[327562641,1716233436222,-500.0,0.00019178,2]
[327562642,1716233436232,-500.0,0.00019178,2]
[327562643,1716233436242,-500.0,0.00019178,2]
[327562644,1716233436252,-176.83477597,0.00019178,2]
[327562645,1716233436261,-500.0,0.00019178,2]
[327562646,1716233436271,-500.0,0.00019178,2]
[327562647,1716233436280,-500.0,0.00019178,2]
[327562648,1716233436290,-642.10032478,0.00019178,2]
[327562649,1716233436300,-500.0,0.00019178,2]
[327562650,1716233436309,-500.0,0.00019178,2]
[327562651,1716233436320,-250.0,0.00019178,2]
[327562652,1716233436329,-500.0,0.00019178,2]
[327562653,1716233436339,-533.7255896,0.00019178,2]
[327562654,1716233436349,-200.24996476,0.00019178,2]
[327562655,1716233436358,-500.0,0.00019178,2]
[327562656,1716233436368,-500.0,0.00019178,2]
[327562657,1716233436378,-500.0,0.00019178,2]
[327562658,1716233436388,-500.0,0.00019178,2]
[327562659,1716233436398,-500.0,0.00019178,2]
[327562660,1716233436408,-500.0,0.00019178,2]
[327562661,1716233436417,-500.0,0.00019178,2]
[327562662,1716233436427,-500.0,0.00019178,2]
[327562663,1716233436437,-192.84273523,0.00019178,2]
[327562664,1716233436447,-186.31578527,0.00019178,2]
[327562665,1716233436458,-500.0,0.00019178,2]
[327562666,1716233436468,-500.0,0.00019178,2]
[327562667,1716233436479,-502.30817697,0.00019178,2]
[327562668,1716233436489,-500.0,0.00019178,2]
[327562669,1716233436500,-500.0,0.00019178,2]
[327562670,1716233436509,-500.0,0.00019178,2]
[327562671,1716233436519,-500.0,0.00019178,2]
[327562672,1716233436529,-500.0,0.00019178,2]
[327562673,1716233436538,-500.0,0.00019178,2]
[327562674,1716233436548,-500.0,0.00019178,2]
[327562675,1716233436558,-500.0,0.00019178,2]
[327562676,1716233436568,-500.0,0.00019178,2]
[327562677,1716233436578,-500.0,0.00019178,2]
[327562678,1716233436588,-500.0,0.00019178,2]
[327562679,1716233436597,-500.0,0.00019178,2]
[327562680,1716233436607,-572.7822382,0.00019178,2]
[327562681,1716233436616,-500.0,0.00019178,2]
[327562682,1716233436626,-500.0,0.00019178,2]
[327562683,1716233436636,-500.0,0.00019178,2]
[327562684,1716233436646,-500.0,0.00019178,2]
[327562685,1716233436655,-500.0,0.00019178,2]
[327562686,1716233436665,-500.0,0.00019178,2]
[327562687,1716233436675,-499.99999999,0.00019178,2]
[327562688,1716233436685,-250.0,0.00019178,2]
[327562689,1716233436695,-500.0,0.00019178,2]
[327562690,1716233436705,-500.0,0.00019178,2]
[327562691,1716233436715,-200.0,0.00019178,2]
[327562692,1716233436725,-500.0,0.00019178,2]
[327562693,1716233436735,-500.0,0.00019178,2]
[327562694,1716233436745,-234.99312173,0.00019178,2]
[327562695,1716233436755,-500.0,0.00019178,2]
[327562696,1716233436764,-500.0,0.00019178,2]
[327562697,1716233436775,-500.0,0.00019178,2]
[327562698,1716233436785,-500.0,0.00019178,2]
[327562699,1716233436795,-500.0,0.00019178,2]
[327562700,1716233436803,-500.0,0.00019178,2]
[327562701,1716233436815,-617.80584515,0.00019178,2]
[327562702,1716233436826,-500.0,0.00019178,2]
[327562703,1716233436836,-500.0,0.00019178,2]
[327562704,1716233436845,-500.0,0.00019178,2]
[327562705,1716233436854,-500.0,0.00019178,2]
[327562706,1716233436864,-500.0,0.00019178,2]
[327562707,1716233436874,-500.0,0.00019178,2]
[327562708,1716233436883,-500.0,0.00019178,2]
[327562709,1716233436893,-500.0,0.00019178,2]
[327562710,1716233436902,-500.0,0.00019178,2]
[327562711,1716233436912,-550.0,0.00019178,2]
[327562712,1716233437008,-250.0,0.00019178,2]
[327562713,1716233437020,-500.0,0.00019178,2]
[327562714,1716233437029,-500.0,0.00019178,2]
[327562715,1716233437038,-500.0,0.00019178,2]
[327562716,1716233437048,-500.0,0.00019178,2]
[327562717,1716233437058,-434.28871503,0.00019178,2]
[327562718,1716233437067,-500.0,0.00019178,2]
[327562719,1716233437077,-500.0,0.00019178,2]
[327562720,1716233437086,-500.0,0.00019178,2]
[327562721,1716233437096,-500.0,0.00019178,2]
[327562722,1716233437106,-500.0,0.00019178,2]
[327562723,1716233437116,-500.0,0.00019178,2]
[327562724,1716233437127,-500.0,0.00019178,2]
[327562725,1716233437137,-500.0,0.00019178,2]
[327562726,1716233437146,-500.0,0.00019178,2]
[327562727,1716233437156,-500.0,0.00019178,2]
[327562728,1716233437166,-500.0,0.00019178,2]
[327562729,1716233437176,-500.0,0.00019178,2]
[327562730,1716233437187,-500.0,0.00019178,2]
[327562731,1716233437197,-224.87624737,0.00019178,2]
[327562732,1716233437207,-500.0,0.00019178,2]
[327562733,1716233437217,-500.0,0.00019178,2]
[327562734,1716233437228,-500.0,0.00019178,2]
[327562735,1716233437238,-409.99999999,0.00019178,2]
[327562736,1716233437248,-233.3179496,0.00019178,2]
[327562737,1716233437258,-500.0,0.00019178,2]
[327562738,1716233437269,-549.99999999,0.00019178,2]
[327562739,1716233437279,-500.0,0.00019178,2]
[327562740,1716233437288,-500.0,0.00019178,2]
[327562741,1716233437298,-307.0010826,0.00019178,2]
[327562742,1716233437307,-500.0,0.00019178,2]
[327562743,1716233437317,-500.0,0.00019178,2]
[327562744,1716233437327,-500.0,0.00019178,2]
[327562745,1716233437336,-500.0,0.00019178,2]
[327562746,1716233437347,-500.0,0.00019178,2]
[327562747,1716233437356,-400.0,0.00019178,2]
[327562748,1716233437367,-500.0,0.00019178,2]
[327562749,1716233437376,-500.0,0.00019178,2]
[327562750,1716233437386,-335.0,0.00019178,2]
[327562751,1716233437396,-494.50459711,0.00019178,2]
[327562752,1716233437406,-500.0,0.00019178,2]
[327562753,1716233437416,-500.0,0.00019178,2]
[327562754,1716233437426,-500.0,0.00019178,2]
[327562755,1716233437436,-2265.69717089,0.00019178,2]
[327562756,1716233437445,-500.0,0.00019178,2]
[327562757,1716233437455,-2265.69717089,0.00019178,2]
[327562758,1716233437473,-500.0,0.00019178,2]
[327562759,1716233437486,-2265.69717089,0.00019178,2]
[327562760,1716233437495,-594.09954962,0.00019178,2]
[327562761,1716233437504,-2265.69717089,0.00019178,2]
[327562762,1716233437513,-500.0,0.00019178,2]
[327562763,1716233437523,-2265.69717089,0.00019178,2]
[327562764,1716233437532,-500.0,0.00019178,2]
[327562765,1716233437541,-2265.69717089,0.00019178,2]
[327562766,1716233437551,-500.0,0.00019178,2]
[327562767,1716233437560,-2265.69717089,0.00019178,2]
[327562768,1716233437570,-500.0,0.00019178,2]
[327562769,1716233437579,-2265.69717089,0.00019178,2]
[327562770,1716233437588,-2265.69717089,0.00019178,2]
[327562771,1716233437598,-500.0,0.00019178,2]
[327562772,1716233437607,-2265.69717089,0.00019178,2]
[327562773,1716233437616,-500.0,0.00019178,2]
[327562774,1716233437625,-2265.69717089,0.00019178,2]
[327562775,1716233437635,-2265.69717089,0.00019178,2]
[327562776,1716233437644,-2265.69717089,0.00019178,2]
[327562777,1716233437654,-2265.69717089,0.00019178,2]
[327562778,1716233437663,-2265.69717089,0.00019178,2]
[327562779,1716233437673,-2265.69717089,0.00019178,2]
[327562780,1716233437683,-2265.69717089,0.00019178,2]
[327562781,1716233437692,-2265.69717089,0.00019178,2]
[327562782,1716233437702,-2265.69717089,0.00019178,2]
[327562783,1716233437713,-2265.69717089,0.00019178,2]
[327562784,1716233437723,-2265.69717089,0.00019178,2]
[327562785,1716233437734,-2265.69717089,0.00019178,2]
[327562786,1716233437744,-2265.69717089,0.00019178,2]
[327562787,1716233437753,-2265.69717089,0.00019178,2]
[327562788,1716233437765,-2265.69717089,0.00019178,2]
[327562789,1716233437777,-500.0,0.00019178,2]
[327562790,1716233437789,-500.0,0.00019178,2]
[327562791,1716233437799,-292.84780325,0.00019178,2]
[327562792,1716233437808,-2254.36868505,0.00019178,2]
[327562793,1716233437818,-2254.36868505,0.00019178,2]
[327562794,1716233437832,-2254.36868505,0.00019178,2]
[327562795,1716233437843,-2254.36868505,0.00019178,2]
[327562796,1716233437852,-2254.36868505,0.00019178,2]
[327562797,1716233437864,-151.0,0.00019178,2]
[327562798,1716233437874,-151.0,0.00019178,2]
[327562799,1716233437884,-151.0,0.00019178,2]
[327562800,1716233437895,-151.0,0.00019178,2]
[327562801,1716233437904,-151.0,0.00019178,2]
[327562802,1716233437914,-151.0,0.00019178,2]
[327562803,1716233437924,-151.0,0.00019178,2]
[327562804,1716233437934,-286.656144,0.00019178,2]
[327562805,1716233437944,-1520.547394,0.00019178,2]
[327562806,1716233437954,-1520.547394,0.00019178,2]
[327562807,1716233437972,-1872.025099,0.00019178,2]
[327562808,1716233437984,-1520.547394,0.00019178,2]
[327562809,1716233437993,-1872.025099,0.00019178,2]
[327562810,1716233438002,-1872.025099,0.00019178,2]
[327562811,1716233438012,-1872.025099,0.00019178,2]
[327562812,1716233438021,-1520.547394,0.00019178,2]
[327562813,1716233438030,-1520.547394,0.00019178,2]
[327562814,1716233438041,-1872.025099,0.00019178,2]
[327562815,1716233438052,-1520.547394,0.00019178,2]
[327562816,1716233438063,-1872.025099,0.00019178,2]
[327562817,1716233438073,-1872.025099,0.00019178,2]
[327562818,1716233438084,-1872.025099,0.00019178,2]
[327562819,1716233438095,-1654.981171,0.00019178,2]
[327562820,1716233438106,-1654.981171,0.00019178,2]
[327562821,1716233438117,-1654.981171,0.00019178,2]
[327562822,1716233438127,-1654.981171,0.00019178,2]
[327562823,1716233438138,-225.363342,0.00019178,2]
[327562824,1716233438148,-225.363342,0.00019178,2]
[327562825,1716233438158,-225.363342,0.00019178,2]
[327562826,1716233438168,-225.363342,0.00019178,2]
[327562827,1716233438178,-225.363342,0.00019178,2]
[327562828,1716233438188,-225.363342,0.00019178,2]
[327562829,1716233438198,-225.363342,0.00019178,2]
[327562830,1716233438209,-225.363342,0.00019178,2]
[327562831,1716233438230,-2310.684312,0.00019178,2]
[327562832,1716233438241,-2310.684312,0.00019178,2]
[327562833,1716233438251,-2310.684312,0.00019178,2]
[327562834,1716233438260,-2310.684312,0.00019178,2]
[327562835,1716233438271,-2310.684312,0.00019178,2]
[327562836,1716233438281,-2310.684312,0.00019178,2]
[327562837,1716233438292,-2310.684312,0.00019178,2]
[327562838,1716233438303,-2310.684312,0.00019178,2]
[327562839,1716233438313,-151.0,0.00019178,2]
[327562840,1716233438324,-151.0,0.00019178,2]
[327562841,1716233438334,-151.0,0.00019178,2]
[327562842,1716233438344,-151.0,0.00019178,2]
[327562843,1716233438355,-151.0,0.00019178,2]
[327562844,1716233438365,-151.0,0.00019178,2]
[327562845,1716233438375,-151.0,0.00019178,2]
[327562846,1716233438385,-151.0,0.00019178,2]
[327562847,1716233438396,-151.0,0.00019178,2]
[327562848,1716233438406,-151.0,0.00019178,2]
[327562849,1716233438416,-151.0,0.00019178,2]
[327562850,1716233438426,-151.0,0.00019178,2]
[327562851,1716233438436,-151.0,0.00019178,2]
[327562852,1716233438543,-151.0,0.00019178,2]
[327562853,1716233438555,-163.932426,0.00019178,2]
[327562854,1716233438566,-158.280845,0.00019178,2]
[327562855,1716233438576,-158.280845,0.00019178,2]
[327562856,1716233438586,-158.280845,0.00019178,2]
[327562857,1716233438596,-158.280845,0.00019178,2]
[327562858,1716233438607,-158.280845,0.00019178,2]
[327562859,1716233438618,-151.0,0.00019178,2]
[327562860,1716233438628,-151.0,0.00019178,2]
[327562862,1716233438639,-151.0,0.00019178,2]
[327562864,1716233438649,-151.0,0.00019178,2]
[327562865,1716233438660,-151.0,0.00019178,2]
[327562866,1716233438670,-151.0,0.00019178,2]
[327562867,1716233438681,-151.0,0.00019178,2]
[327562868,1716233438692,-151.0,0.00019178,2]
[327562869,1716233438702,-151.0,0.00019178,2]
[327562870,1716233438718,-151.0,0.00019178,2]
[327562871,1716233438728,-158.280845,0.00019178,2]
[327562872,1716233438738,-158.280845,0.00019178,2]
[327562873,1716233438747,-158.280845,0.00019178,2]
[327562874,1716233438757,-158.280845,0.00019178,2]
[327562875,1716233438766,-158.280845,0.00019178,2]
[327562876,1716233438778,-243.7483953,0.00019178,2]
[327562877,1716233438787,-341.12488271,0.00019178,2]
[327562878,1716233438796,-440.4123824,0.00019178,2]
[327562879,1716233438806,-417.5802846,0.00019178,2]
[327562880,1716233438819,-337.714579,0.00019178,2]
[327562881,1716233438829,-337.714579,0.00019178,2]
[327562882,1716233438839,-337.714579,0.00019178,2]
[327562883,1716233438850,-337.714579,0.00019178,2]
[327562884,1716233438861,-337.714579,0.00019178,2]
[327562885,1716233438872,-337.714579,0.00019178,2]
[327562886,1716233438882,-337.714579,0.00019178,2]
[327562887,1716233438891,-337.714579,0.00019178,2]
[327562888,1716233438902,-337.714579,0.00019178,2]